bitfinex/quotes_ETHUSD_20251008
["timestamp","ask_amount","ask_price","bid_price","bid_amount"]
[1759949967577,0.01656876,4527.7,4527.1,0.01]
[1759949968195,0.4712,4527.7,4527.1,0.01]
[1759949969204,0.01656876,4527.9,4527.2,2.20885884]
[1759949969419,0.01656876,4527.9,4527.1,0.75299086]
[1759949969420,0.01656876,4527.9,4527.1,0.03208919]
[1759949969566,0.01656876,4527.9,4527.1,0.01]
[1759949969567,2.20879539,4527.4,4527.1,0.01]
[1759949969767,2.20887082,4527.2,4527.1,0.01]
[1759949970267,2.68007082,4527.2,4527.1,0.01]
[1759949971907,2.68007082,4527.2,4527.1,0.01]
[1759949972669,2.68007082,4527.2,4527.1,0.011]
[1759949973285,0.9617435,4527.2,4527.1,0.011]
[1759949973483,0.4712,4527.2,4527.1,0.011]
[1759949977224,0.48976876,4527.7,4527.1,0.011]
[1759949979333,0.65016876,4527.6,4527.1,0.011]
[1759949979704,0.4712,4527.5,4527.1,0.011]
[1759949979904,4.42855719,4527.3,4527.1,0.011]
[1759949980136,0.50820136,4527.2,4527.1,0.011]
[1759949980332,0.97940136,4527.2,4527.1,0.011]
[1759949985442,0.9628326,4527.2,4527.1,0.011]
[1759949985648,0.97940136,4527.2,4527.1,0.011]
[1759949986459,1.61300136,4527.2,4527.1,0.011]
[1759949986643,6.98215719,4526.9,4526.8,0.001]
[1759949986848,8.94669828,4526.9,4526.8,0.001]
[1759949987032,9.39649828,4526.9,4526.8,0.001]
[1759949989423,9.39649828,4526.9,4526.3,0.001]
[1759949989424,0.6336,4526.8,4526.3,0.001]
[1759949989660,5.06215719,4526.4,4526.3,0.001]
[1759949989869,7.66043949,4526.4,4526.3,0.001]
[1759949990156,9.55086344,4526.4,4526.3,0.001]
[1759949990536,9.34556832,4526.4,4526.3,0.001]
[1759949991160,9.55063788,4526.4,4526.3,0.001]
[1759949991359,9.34556832,4526.4,4526.3,0.001]
[1759949991731,8.87258114,4526.4,4526.3,0.001]
[1759949993771,3.81042395,4526.4,4526.3,0.001]
[1759949993940,2.3698,4526.4,4526.3,0.001]
[1759949994272,2.38636876,4526.4,4526.3,0.001]
[1759949994470,2.38636876,4526.4,4526.1,0.011]
[1759949994471,0.6336,4526.3,4526.1,0.011]
[1759949994770,0.01656876,4526.2,4524.5,2.298]
[1759949994941,4.0502422,4525.9,4524.5,2.298]
[1759949995141,4.06681096,4525.9,4524.5,2.298]
[1759949995359,4.50101096,4525.9,4524.5,2.298]
[1759949995563,4.4844422,4525.9,4524.5,2.298]
[1759949997352,4.4844422,4525.9,4524.1,0.09]
[1759949997353,4.4844422,4525.9,4524.6,0.059]
[1759949997554,4.4844422,4525.9,4524.1,0.09]
[1759949998064,4.4844422,4525.9,4524.1,0.01]
[1759949998275,4.4844422,4525.9,4524.6,2.309]
[1759949998474,4.4844422,4525.9,4524.5,0.057]
[1759949998645,4.4844422,4525.9,4524.5,2.355]
[1759949999458,4.4844422,4525.9,4524.1,0.01]
[1759949999459,5.1180422,4525.9,4524.1,0.01]
[1759949999777,5.1180422,4525.9,4524.4,2.356]
[1759949999778,6.42903895,4525.9,4524.4,2.356]
[1759949999973,6.42903895,4525.9,4524.1,0.01]
[1759950000276,0.744,4525.8,4524.1,0.01]
[1759950000575,3.8276422,4525.4,4524.1,0.09]
[1759950000754,0.01656876,4525.3,4524.1,0.11210384]
[1759950000945,0.4342,4525.2,4524.1,0.11210384]
[1759950001944,0.4342,4525.2,4524.2,0.02210335]
[1759950002151,0.45076876,4525.2,4524.1,0.09]
[1759950002345,3.8276422,4525.6,4524.1,0.11210384]
[1759950002654,4.2618422,4525.6,4524.1,0.25040384]
[1759950002867,0.4342,4525.5,4524.1,0.25040384]
[1759950003255,0.4342,4525.4,4524.1,0.25040384]
[1759950003851,3.8276422,4525.6,4524.1,0.25040384]
[1759950004059,0.01656876,4525.8,4524.9,2.358]
[1759950004277,0.4342,4526.1,4525.2,0.25889847]
[1759950004454,4.0502422,4525.3,4524.1,0.09]
[1759950004974,4.0502422,4525.3,4524.1,0.01]
[1759950004975,0.45076876,4525.2,4524.1,0.01]
[1759950005169,0.01656876,4525.2,4524.7,2.298]
[1759950005350,2.70052636,4527.2,4525.1,2.152]
[1759950005351,0.01656876,4525.5,4525.1,2.152]
[1759950005544,0.01656876,4525.8,4525.1,4.45]
[1759950005856,0.01656876,4525.8,4525.1,6.207]
[1759950006057,0.45076876,4525.9,4525.1,6.207]
[1759950006261,0.45076876,4525.9,4525.2,0.02209847]
[1759950006655,3.8276422,4526.3,4525.2,0.02209847]
[1759950006854,0.1104,4525.3,4525.2,0.64500832]
[1759950007073,0.1104,4525.3,4525.2,0.76120985]
[1759950007287,0.1104,4526.1,4525.2,2.79160985]
[1759950007597,0.1104,4526.1,4525.3,0.1383]
[1759950007750,0.1104,4526.1,4525.4,0.02209749]
[1759950007950,0.002,4527.3,4525.5,0.40863073]
[1759950008190,0.002,4526.6,4525.6,0.1383]
[1759950008610,0.002,4526.6,4525.8,1.92]
[1759950008964,0.002,4526.6,4525.9,0.1383]
[1759950009998,0.002,4526.6,4526.0,17.782]
[1759950010399,0.002,4526.6,4526.1,1.92]
[1759950010699,0.002,4526.6,4526.3,1.92]
[1759950010901,0.002,4526.6,4526.4,0.02209261]
[1759950011118,0.002,4526.6,4526.4,0.1383]
[1759950011279,0.002,4526.6,4526.5,0.1383]
[1759950011666,0.002,4526.6,4526.5,0.16039212]
[1759950012022,0.002,4526.6,4526.5,1.20513921]
[1759950012300,0.002,4526.6,4526.5,7.49413921]
[1759950012615,0.002,4526.6,4526.5,18.98513921]
[1759950012768,0.002,4526.6,4526.5,20.90513921]
[1759950015300,0.002,4526.6,4526.5,21.53873921]
[1759950015769,0.002,4526.6,4526.5,3.75873921]
[1759950015990,0.002,4526.6,4526.5,20.4679]
[1759950017239,0.002,4526.6,4526.5,8.3493]
[1759950017388,0.002,4526.6,4526.5,19.8373]
[1759950018625,0.002,4526.6,4526.5,2.0583]
[1759950018818,0.002,4526.6,4526.5,15.9493]
[1759950019527,0.002,4526.6,4526.5,17.55527]
[1759950020031,0.002,4526.6,4526.5,3.66427]
[1759950020189,0.002,4526.6,4526.5,1.92]
[1759950020394,0.002,4526.6,4526.5,6.188]
[1759950020794,0.002,4526.6,4526.5,4.268]
[1759950021489,0.002,4526.6,4525.8,0.1104]
[1759950021821,0.002,4526.6,4525.1,0.011]
[1759950021822,0.1104,4526.5,4525.9,11.733]
[1759950022012,0.002,4526.6,4526.0,8.585]
[1759950022404,0.1104,4526.0,4525.7,9.19]
[1759950022604,0.002,4526.6,4525.8,8.586]
[1759950023191,0.002,4526.6,4524.9,0.1104]
[1759950023192,0.002,4526.6,4525.3,1.92]
[1759950023540,0.1104,4525.7,4525.5,1.92]
[1759950023693,0.1104,4525.7,4525.5,2.0583]
[1759950023897,0.1104,4525.7,4525.6,0.1383]
[1759950024101,0.1104,4525.7,4525.6,0.16039651]
[1759950024304,0.1104,4526.2,4525.6,0.16039651]
[1759950024527,0.1104,4526.2,4525.7,1.53657965]
[1759950024727,0.1104,4526.2,4525.9,1.92]
[1759950025116,0.1104,4526.2,4526.0,0.16039456]
[1759950025323,0.1104,4526.2,4526.1,0.1383]
[1759950025489,0.1104,4526.2,4525.7,1.67487965]
[1759950025695,0.002,4526.6,4525.9,1.92]
[1759950025906,0.002,4526.6,4526.0,1.773]
[1759950026732,0.002,4526.6,4525.5,0.001]
[1759950026940,0.1104,4526.0,4525.8,1.92]
[1759950027118,0.002,4526.6,4525.8,1.92]
[1759950028495,0.002,4526.6,4525.8,3.90343]
[1759950028707,0.4401,4526.6,4525.8,1.92]
[1759950028907,0.4401,4526.6,4525.5,0.001]
[1759950028908,0.1104,4525.8,4525.5,0.001]
[1759950029202,0.4381,4526.5,4525.6,2.629]
[1759950029499,0.4381,4526.5,4525.7,6.29]
[1759950029717,0.002,4526.6,4525.7,8.587]
[1759950030432,0.002,4526.6,4525.5,0.001]
[1759950030631,0.002,4526.6,4526.1,0.1104]
[1759950030959,0.002,4526.6,4526.2,1.7993]
[1759950031101,0.002,4526.6,4526.2,0.1383]
[1759950031305,0.1104,4526.2,4525.5,0.001]
[1759950031543,0.4381,4526.4,4525.6,4.067]
[1759950032210,0.1104,4525.6,4525.5,0.001]
[1759950032409,0.002,4526.6,4525.5,10.671397]
[1759950032611,0.1104,4526.0,4525.6,1.92]
[1759950032836,0.1104,4526.0,4525.7,1.41732602]
[1759950033040,0.1104,4526.0,4525.7,1.39523]
[1759950033237,0.1104,4526.0,4525.8,2.20955411]
[1759950033437,0.1104,4526.0,4525.9,2.20950529]
[1759950033941,0.1104,4526.0,4525.9,2.34780529]
[1759950034839,0.002,4526.6,4525.9,2.34780529]
[1759950034840,0.1104,4526.3,4526.2,2.20931067]
[1759950035140,0.1104,4526.3,4526.2,8.52340425]
[1759950035304,0.002,4526.6,4526.5,2.20921241]
[1759950035507,0.002,4526.6,4526.5,4.52830453]
[1759950035817,0.002,4526.6,4526.5,6.56451241]
[1759950036033,0.002,4526.6,4526.5,8.07109196]
[1759950039808,0.002,4526.6,4526.5,14.36109196]
[1759950043941,0.002,4526.6,4526.5,25.79384681]
[1759950045439,0.002,4526.6,4526.5,26.42744681]
[1759950045639,0.002,4526.6,4526.5,17.95084681]
[1759950045815,0.002,4526.6,4526.5,4.12921241]
[1759950046038,0.002,4526.6,4526.5,7.798]
[1759950046233,0.002,4526.6,4526.5,8.586]
[1759950046557,0.002,4526.6,4525.8,0.1383]
[1759950046750,0.002,4526.6,4525.7,2.20957656]
[1759950046945,0.002,4526.6,4525.8,4.606]
[1759950047251,0.002,4526.6,4526.2,2.20933273]
[1759950047458,0.002,4526.6,4526.4,1.92]
[1759950048047,0.002,4526.6,4525.9,2.20945706]
[1759950048251,0.4409,4526.5,4525.8,2.20951461]
[1759950048571,0.4409,4526.4,4525.6,0.001]
[1759950048785,0.45746876,4526.4,4525.8,2.297]
[1759950049082,2.20931003,4526.3,4525.8,2.297]
[1759950049264,0.01656876,4526.2,4525.6,0.001]
[1759950049577,0.4409,4526.2,4525.7,4.315]
[1759950049742,0.4409,4526.1,4525.7,4.315]
[1759950050168,0.002,4526.6,4525.8,0.02209554]
[1759950050341,0.002,4526.6,4525.7,4.315]
[1759950050542,0.4409,4526.5,4525.8,6.299]
[1759950050739,0.01656876,4526.4,4525.6,0.001]
[1759950050937,0.45746876,4526.4,4525.6,0.001]
[1759950051171,2.43760293,4525.7,4525.6,0.001]
[1759950051342,2.90231634,4525.7,4525.6,0.001]
[1759950051538,3.34321634,4525.7,4525.6,0.001]
[1759950051872,3.3597851,4525.7,4525.6,0.001]
[1759950058078,0.92598217,4525.7,4525.6,0.001]
[1759950058247,2.67087169,4525.7,4525.6,0.001]
[1759950058589,3.30447169,4525.7,4525.6,0.001]
[1759950058949,2.95365175,4525.6,4525.5,0.001]
[1759950059362,3.39835175,4525.6,4525.5,0.001]
[1759950060453,3.41492051,4525.6,4525.5,0.001]
[1759950061381,4.22152623,4525.6,4525.5,0.001]
[1759950066084,0.80660572,4525.6,4525.5,0.001]
[1759950066259,0.4447,4525.6,4525.5,0.001]
[1759950067789,3.30452051,4525.6,4525.5,0.001]
[1759950068088,8.95692051,4525.6,4525.5,0.001]
[1759950068288,10.08019954,4525.6,4525.5,0.001]
[1759950068713,3.79419954,4525.6,4525.5,0.001]
[1759950068888,0.002,4526.4,4525.5,0.001]
[1759950069089,0.01856876,4526.4,4525.5,0.001]
[1759950069289,2.20931003,4526.3,4525.5,0.001]
[1759950069614,0.002,4526.4,4525.5,0.001]
[1759950069796,0.002,4526.4,4525.6,4.051]
[1759950069998,0.002,4526.4,4525.7,0.02209602]
[1759950070311,2.20932673,4526.3,4525.7,0.02209602]
[1759950070480,0.002,4526.4,4525.7,0.02209602]
[1759950070675,0.002,4526.4,4525.7,0.65930562]
[1759950071013,0.002,4526.4,4525.7,0.6372096]
[1759950071205,0.002,4526.4,4525.8,2.20954983]
[1759950071378,0.002,4526.4,4526.1,2.20940433]
[1759950071578,0.002,4526.4,4526.2,0.02209358]
[1759950071781,0.002,4526.4,4525.8,2.20953466]
[1759950072016,0.002,4526.4,4525.9,0.70370443]
[1759950072232,0.002,4526.4,4525.9,2.91318666]
[1759950073012,0.002,4526.4,4525.9,0.70370443]
[1759950073915,0.4467,4526.4,4526.0,8.584]
[1759950074218,0.46126876,4526.3,4525.5,0.001]
[1759950074419,2.20955411,4525.8,4525.5,0.001]
[1759950074794,0.46126876,4525.7,4525.5,0.001]
[1759950074983,2.20965175,4525.6,4525.5,0.001]
[1759950075181,2.72089963,4525.6,4525.5,0.001]
[1759950075382,3.16559963,4525.6,4525.5,0.001]
[1759950080622,3.16759963,4525.6,4525.5,0.001]
[1759950083626,3.80119963,4525.6,4525.5,0.001]
[1759950083823,5.72119963,4525.6,4525.5,0.001]
[1759950084032,6.39937438,4525.6,4525.5,0.001]
[1759950084843,2.21033552,4524.2,4524.1,0.01]
[1759950085050,2.65239576,4524.2,4524.1,0.01]
[1759950085247,3.09119576,4524.2,4524.1,0.01]
[1759950087641,0.88086024,4524.2,4524.1,0.01]
[1759950087838,0.6336,4524.7,4524.1,0.01]
[1759950088043,2.21033552,4524.2,4524.1,0.01]
[1759950088243,2.22690428,4524.2,4524.1,0.01]
[1759950088454,2.66570428,4524.2,4524.1,0.01]
[1759950088650,0.45536876,4524.2,4524.1,0.01]
[1759950088855,0.01656876,4524.2,4524.1,0.01]
[1759950089057,2.64913552,4524.2,4524.1,0.01]
[1759950089237,2.66570428,4524.2,4524.1,0.01]
[1759950089856,2.64913552,4524.2,4524.1,0.01]
[1759950090054,2.66570428,4524.2,4524.1,0.01]
[1759950091248,2.64913552,4524.2,4524.1,0.01]
[1759950092283,2.66570428,4524.2,4524.1,0.01]
[1759950093246,2.66570428,4524.2,4524.1,1.01]
[1759950093247,3.15329981,4524.2,4524.1,1.01]
[1759950094769,3.13673105,4524.2,4524.1,1.01]
[1759950096465,2.21039149,4524.1,4523.2,4.252]
[1759950096791,2.21039149,4524.1,4523.3,0.01658987]
[1759950097158,2.21045459,4524.0,4523.3,0.01658987]
[1759950097554,2.21039887,4524.1,4523.3,2.22735298]
[1759950097995,0.46642919,4524.2,4523.3,0.01658987]
[1759950098167,2.64915299,4524.2,4523.3,0.01658987]
[1759950098368,2.67678218,4524.2,4523.3,0.01658987]
[1759950098581,2.21038438,4524.1,4523.2,4.252]
[1759950098785,2.23807463,4524.0,4523.2,4.252]
[1759950098988,2.21056573,4523.8,4523.2,4.252]
[1759950099205,2.23819736,4523.8,4523.2,4.252]
[1759950099417,0.4388,4523.7,4523.1,6.291]
[1759950099737,0.4388,4523.7,4523.6,0.001]
[1759950101207,2.64937983,4523.7,4523.6,0.001]
[1759950101575,2.67701207,4523.7,4523.6,0.001]
[1759950101770,3.13813128,4523.7,4523.6,0.001]
[1759950103404,3.77173128,4523.7,4523.6,0.001]
[1759950103583,3.79936352,4523.7,4523.6,0.001]
[1759950104184,5.71936352,4523.7,4523.6,0.001]
[1759950104386,5.89654564,4523.7,4523.6,0.001]
[1759950105077,6.36839264,4523.7,4523.6,0.001]
[1759950105417,5.89654564,4523.7,4523.6,0.001]
[1759950107815,12.17854564,4523.7,4523.6,0.001]
[1759950108442,5.69173128,4523.7,4523.6,0.001]
[1759950108723,11.97373128,4523.7,4523.6,0.001]
[1759950110059,12.178425,4523.7,4523.6,0.001]
[1759950114283,5.896425,4523.7,4523.6,0.001]
[1759950114468,12.178425,4523.7,4523.6,0.001]
[1759950114785,11.97373128,4523.7,4523.6,0.001]
[1759950115460,12.17856445,4523.7,4523.6,0.001]
[1759950116248,12.6504935,4523.7,4523.6,0.001]
[1759950116890,12.6524935,4523.7,4523.6,0.001]
[1759950117963,24.11817491,4523.7,4523.6,0.001]
[1759950118177,23.91334174,4523.7,4523.6,0.001]
[1759950118382,24.11807053,4523.7,4523.6,0.001]
[1759950118880,15.6254907,4523.7,4523.6,0.001]
[1759950119092,2.21007588,4524.8,4523.6,0.001]
[1759950119093,0.59134293,4525.3,4523.6,0.011]
[1759950119292,0.1104,4523.9,4523.7,0.40325535]
[1759950119592,0.002,4525.6,4523.8,0.55317999]
[1759950119593,0.4499,4524.2,4523.8,0.55317999]
[1759950119884,0.1104,4523.8,4523.6,0.001]
[1759950120547,0.1104,4523.8,4523.7,2.21057983]
[1759950120754,0.02762736,4524.5,4523.9,2.21047988]
[1759950120967,0.1104,4523.9,4523.8,2.21052603]
[1759950121275,0.1104,4524.1,4524.0,2.21043324]
[1759950121475,0.1104,4524.1,4524.0,11.24845724]
[1759950121871,0.1104,4524.1,4524.0,11.38775724]
[1759950122270,0.1104,4524.1,4524.0,11.24845724]
[1759950122771,0.1104,4524.1,4524.0,11.38775724]
[1759950122971,0.1104,4524.1,4524.0,11.24845724]
[1759950124284,0.1104,4524.1,4524.0,11.38775724]
[1759950125078,0.299,4525.0,4524.9,2.20999359]
[1759950125281,0.299,4525.0,4524.9,6.72400597]
[1759950125789,0.299,4525.0,4524.9,8.93399956]
[1759950125995,0.299,4525.0,4524.2,2.21033552]
[1759950126195,0.7489,4525.0,4524.3,3.965]
[1759950126497,0.02762491,4524.9,4524.3,6.17524234]
[1759950126698,0.02762491,4524.9,4524.4,2.21021381]
[1759950127122,0.299,4525.0,4524.9,2.20999359]
[1759950127282,0.299,4525.0,4524.9,6.72300589]
[1759950127481,0.299,4525.0,4524.9,6.281]
[1759950128102,0.299,4525.0,4524.9,8.49099359]
[1759950128280,0.299,4525.0,4524.9,6.281]
[1759950129400,0.299,4525.0,4524.0,0.456024]
[1759950129703,0.1104,4524.9,4524.6,2.21013125]
[1759950129868,0.7489,4525.0,4524.2,1.92]
[1759950129869,0.7489,4525.0,4524.7,4.63808421]
[1759950130070,0.299,4525.0,4524.9,2.20999359]
[1759950131267,0.1104,4524.9,4524.8,0.01657411]
[1759950131470,0.02762553,4524.8,4523.6,0.001]
[1759950131708,2.21047586,4524.0,4523.6,0.001]
[1759950131876,0.02763102,4523.9,4523.6,0.001]
[1759950132194,0.4499,4523.9,4523.6,0.001]
[1759950132366,0.02763163,4523.8,4523.6,0.001]
[1759950132569,0.4499,4523.8,4523.6,0.001]
[1759950132770,0.4499,4523.7,4523.6,0.001]
[1759950134373,0.47753224,4523.7,4523.6,0.001]
[1759950134567,0.4499,4523.7,4523.6,0.001]
[1759950135507,0.47753224,4523.7,4523.6,0.001]
[1759950135703,0.4499,4523.7,4523.6,0.001]
[1759950136138,2.66047983,4523.7,4523.6,0.001]
[1759950136407,0.4499,4523.7,4523.6,0.001]
[1759950137305,2.66047983,4523.7,4523.6,0.001]
[1759950138335,0.4499,4523.7,4523.6,0.001]
[1759950138608,2.66047983,4523.7,4523.6,0.001]
[1759950138814,2.92929098,4523.7,4523.6,0.001]
[1759950139714,4.84929098,4523.7,4523.6,0.001]
[1759950141831,5.48289098,4523.7,4523.6,0.001]
[1759950143496,14.06189098,4523.7,4523.6,0.001]
[1759950144926,14.06289098,4523.7,4523.6,0.001]
[1759950146159,2.84442419,4523.2,4523.1,1e-08]
[1759950146309,0.6336,4522.8,4522.1,0.01]
[1759950146496,2.21178372,4521.3,4520.2,0.0913]
[1759950146696,2.46574969,4521.2,4520.2,0.0913]
[1759950146908,2.92714969,4521.2,4520.2,0.033]
[1759950147504,2.92714969,4521.2,4520.2,2.2452526]
[1759950147697,2.92714969,4521.2,4520.2,0.033]
[1759950148305,2.92714969,4521.2,4520.1,0.01]
[1759950148509,9.20814969,4521.2,4520.1,0.01]
[1759950148711,10.70615839,4521.2,4520.1,0.01]
[1759950148915,2.84589149,4520.2,4520.1,0.01]
[1759950149111,2.23994513,4520.2,4520.1,0.01]
[1759950149340,2.70134513,4520.2,4520.1,0.01]
[1759950152357,2.70134513,4520.2,4518.1,0.01]
[1759950152358,0.6336,4520.1,4518.1,0.01]
[1759950152534,0.6336,4519.0,4518.1,0.01]
[1759950152718,2.2131975,4518.4,4518.1,0.01]
[1759950152906,2.21327077,4518.2,4518.1,0.01]
[1759950153432,2.67467077,4518.2,4518.1,0.01]
[1759950153610,0.4614,4518.2,4518.1,0.01]
[1759950153811,2.67467077,4518.2,4518.1,0.01]
[1759950154035,2.70233665,4518.2,4518.1,0.01]
[1759950156239,2.70233665,4518.2,4518.1,0.01]
[1759950156536,3.17495292,4518.2,4518.1,0.01]
[1759950158437,0.4614,4518.6,4518.1,0.01]
[1759950158640,0.4614,4518.2,4518.1,0.01]
[1759950158861,7.75423962,4518.3,4518.1,0.01]
[1759950159058,5.541,4518.3,4518.1,0.01]
[1759950159228,7.75422681,4518.3,4518.1,0.01]
[1759950159660,8.49818063,4518.4,4518.1,0.01]
[1759950159834,0.4614,4518.5,4518.1,0.01]
[1759950160031,6.7464,4518.4,4518.1,0.01]
[1759950160225,2.21322657,4518.3,4518.1,0.01]
[1759950160426,3.6764,4518.4,4518.1,0.01]
[1759950160951,2.67462783,4518.3,4518.1,0.01]
[1759950161152,0.4614,4518.3,4518.1,0.01]
[1759950161324,2.24093665,4518.2,4518.1,0.01]
[1759950161525,2.70233665,4518.2,4518.1,0.01]
[1759950161964,8.49817502,4518.4,4518.1,0.01]
[1759950161965,0.02766527,4518.3,4518.1,0.01]
[1759950162163,2.67467077,4518.2,4518.1,0.01]
[1759950162483,3.76323762,4518.2,4518.1,0.01]
[1759950163945,8.95967077,4518.2,4518.1,0.01]
[1759950164658,2.67467077,4518.2,4518.1,0.01]
[1759950164860,0.4614,4518.8,4518.1,0.01]
[1759950165157,2.21302587,4518.7,4518.1,0.01]
[1759950165344,0.02766343,4518.6,4518.1,0.01]
[1759950165549,2.21327077,4518.2,4518.1,0.01]
[1759950165856,2.67857077,4518.2,4518.1,0.01]
[1759950166040,2.70623665,4518.2,4518.1,0.01]
[1759950166453,0.49296588,4518.2,4518.1,0.01]
[1759950166657,0.02766588,4518.2,4518.1,0.01]
[1759950166863,0.103,4518.8,4518.1,0.01]
[1759950167052,2.21313532,4518.5,4518.1,0.01]
[1759950167252,2.24073723,4518.7,4518.1,0.01]
[1759950167474,0.02766282,4518.7,4518.1,0.01]
[1759950167842,2.2406391,4518.8,4518.1,0.01]
[1759950168238,2.21304367,4518.7,4518.1,0.01]
[1759950168469,0.4653,4518.9,4518.1,0.01]
[1759950168470,0.02766343,4518.6,4518.1,0.01]
[1759950168767,2.21304862,4518.7,4518.1,0.01]
[1759950168975,0.4653,4518.9,4518.1,2.22331537]
[1759950169141,2.67824002,4518.9,4518.2,0.01665268]
[1759950169342,2.2406391,4518.8,4518.1,0.01]
[1759950170270,2.21315805,4518.5,4518.1,0.01]
[1759950170574,2.21302587,4518.7,4518.1,0.01]
[1759950171073,2.21310708,4518.6,4518.1,0.01]
[1759950171254,2.21313065,4518.5,4518.1,0.01]
[1759950171641,2.21317573,4518.4,4518.1,0.01]
[1759950171839,2.21324907,4518.3,4518.1,0.01]
[1759950172047,2.24093665,4518.2,4518.1,0.01]
[1759950172246,2.70623665,4518.2,4518.1,0.01]
[1759950173751,2.70623665,4518.2,4518.1,0.011]
[1759950174969,8.99223665,4518.2,4518.1,0.011]
[1759950175282,8.96457077,4518.2,4518.1,0.011]
[1759950175586,2.21327077,4518.2,4518.1,0.011]
[1759950175775,2.21311304,4518.6,4518.1,0.011]
[1759950175975,6.286,4518.7,4518.1,0.011]
[1759950176181,2.21312665,4518.5,4518.1,0.011]
[1759950176489,0.4553,4519.0,4518.1,0.011]
[1759950176490,0.20456167,4518.4,4518.1,0.011]
[1759950176658,0.4983995,4518.9,4518.1,0.011]
[1759950176853,1.707,4519.1,4518.1,2.2242845]
[1759950177071,0.20457074,4519.0,4518.2,0.01665182]
[1759950177267,0.20457074,4518.9,4518.2,0.24074545]
[1759950177557,0.20457074,4518.8,4518.2,2.45400683]
[1759950177753,0.47073791,4518.9,4518.4,2.21313525]
[1759950178087,0.47073791,4519.2,4518.5,2.21311626]
[1759950178286,0.67575775,4519.1,4518.5,2.21311626]
[1759950178474,2.24043627,4519.3,4518.1,0.011]
[1759950178475,0.67575775,4519.0,4518.1,0.011]
[1759950178661,2.21302658,4518.7,4518.1,0.011]
[1759950178986,0.67575775,4518.6,4518.1,0.011]
[1759950179188,0.20504914,4518.5,4518.1,0.011]
[1759950179389,0.47073791,4518.6,4518.1,0.011]
[1759950179590,0.47246802,4518.7,4518.1,0.011]
[1759950179774,0.20503508,4518.6,4518.3,2.21321605]
[1759950179973,0.47246827,4519.1,4518.1,0.61408153]
[1759950180176,2.89040405,4519.0,4518.1,0.011]
[1759950180376,1.16046498,4518.9,4518.1,0.011]
[1759950180577,2.21322924,4518.3,4518.1,0.011]
[1759950181375,0.4553,4518.6,4518.1,0.011]
[1759950181575,2.2132526,4518.3,4518.1,0.011]
[1759950181837,0.33466614,4518.3,4518.1,0.011]
[1759950182122,3.37431306,4518.2,4518.1,0.011]
[1759950182286,4.16216719,4518.2,4518.1,0.011]
[1759950182618,3.37431306,4518.2,4518.1,0.011]
[1759950182980,4.16243773,4518.2,4518.1,0.011]
[1759950183191,4.46538447,4518.2,4518.1,0.011]
[1759950183406,9.93459392,4518.2,4518.1,0.011]
[1759950183608,3.64959392,4518.2,4518.1,0.011]
[1759950183775,3.6772598,4518.2,4518.1,0.011]
[1759950183980,9.9622598,4518.2,4518.1,0.011]
[1759950184180,9.93459392,4518.2,4518.1,0.011]
[1759950184905,0.67807641,4518.2,4518.1,0.011]
[1759950185313,0.70574229,4518.2,4518.1,0.011]
[1759950186413,0.67807641,4518.2,4518.1,0.011]
[1759950187630,3.34664718,4518.2,4518.1,0.011]
[1759950187924,3.37431306,4518.2,4518.1,0.011]
[1759950188308,4.26539439,4518.2,4518.1,0.011]
[1759950191324,4.06021026,4518.2,4518.1,0.011]
[1759950191631,6.285,4518.2,4518.1,0.011]
[1759950192232,6.7403,4518.2,4518.1,0.011]
[1759950192540,2.66857077,4518.2,4518.1,0.011]
[1759950192822,6.78532426,4518.4,4518.1,0.011]
[1759950193003,6.285,4518.4,4518.1,0.011]
[1759950193197,0.4553,4518.8,4518.1,0.011]
[1759950193402,2.21315673,4518.5,4518.1,0.011]
[1759950193720,0.47252263,4518.6,4518.1,0.011]
[1759950193931,0.002,4519.1,4518.1,0.011]
[1759950194238,0.1104,4518.3,4518.2,2.22992259]
[1759950194622,0.1104,4518.3,4518.2,2.21327077]
[1759950194829,0.1104,4518.3,4518.2,2.67296015]
[1759950195044,0.1104,4518.3,4518.2,2.83226015]
[1759950195610,0.002,4519.1,4518.9,2.21290438]
[1759950195933,0.002,4519.1,4519.0,0.01664545]
[1759950196370,0.1124,4519.1,4519.0,2.3888244]
[1759950196541,0.1124,4519.1,4519.0,2.37217895]
[1759950197160,0.002,4519.1,4519.0,2.68029684]
[1759950197761,0.002,4519.1,4519.0,0.46741789]
[1759950197933,0.002,4519.1,4518.9,2.21288096]
[1759950198128,0.002,4519.1,4518.7,4.51502579]
[1759950198331,0.002,4519.1,4519.0,2.21287895]
[1759950198533,0.002,4519.1,4518.9,2.2129221]
[1759950198750,0.002,4519.1,4519.0,2.21287895]
[1759950199833,0.002,4519.1,4518.1,0.011]
[1759950199834,2.67014658,4519.1,4518.1,0.011]
[1759950200035,0.1104,4518.8,4518.2,1.92]
[1759950200272,0.1104,4518.2,4518.1,1.931]
[1759950200469,0.1104,4518.2,4518.1,4.14431975]
[1759950200976,0.1104,4518.2,4518.1,1.931]
[1759950201744,0.1104,4518.2,4518.1,0.011]
[1759950201971,0.5657,4518.2,4518.1,0.011]
[1759950202264,0.1104,4518.2,4518.1,2.22431975]
[1759950202462,0.1104,4518.2,4518.1,0.011]
[1759950203187,0.5657,4518.2,4518.1,0.011]
[1759950203335,0.59336588,4518.2,4518.1,0.011]